[Event "Late-Titled-Tuesday-Blitz-February-13-2024"]
[Site "Chess.com"]
[Date "2024.02.13"]
[Round "2"]
[White "Viktor_Poddubnyi"]
[Black "Lucas_Tomiello"]
[Result "0-1"]
[WhiteElo "2265"]
[BlackElo "2704"]
[TimeControl "180+1"]
[EndTime "14:17:19 PST"]
[Termination "Lucas_Tomiello won on time"]

1. e4 {[%clk 0:03:00.9]} 1... c6 {[%clk 0:02:57.9]} 2. d4 {[%clk 0:03:00.1]}
2... d5 {[%clk 0:02:57.7]} 3. exd5 {[%clk 0:03:01]} 3... cxd5 {[%clk 0:02:57.9]}
4. c4 {[%clk 0:03:01.6]} 4... Nf6 {[%clk 0:02:56.5]} 5. Nc3 {[%clk 0:03:02.2]}
5... Nc6 {[%clk 0:02:52.5]} 6. Bg5 {[%clk 0:03:01.5]} 6... e6 {[%clk 0:02:35.2]}
7. Nf3 {[%clk 0:02:59.3]} 7... Be7 {[%clk 0:02:31.8]} 8. c5 {[%clk 0:02:58.9]}
8... O-O {[%clk 0:02:25.1]} 9. Bb5 {[%clk 0:02:59.2]} 9... Bd7 {[%clk
0:02:24.8]} 10. O-O {[%clk 0:02:58.5]} 10... b6 {[%clk 0:02:18.9]} 11. Bxc6
{[%clk 0:02:52.7]} 11... Bxc6 {[%clk 0:02:19.8]} 12. Ne5 {[%clk 0:02:52.9]}
12... Be8 {[%clk 0:02:17.1]} 13. b4 {[%clk 0:02:49.6]} 13... Rc8 {[%clk
0:02:14.3]} 14. Re1 {[%clk 0:02:40.8]} 14... h6 {[%clk 0:02:13.6]} 15. Bh4
{[%clk 0:02:38.9]} 15... bxc5 {[%clk 0:01:59.7]} 16. bxc5 {[%clk 0:02:37.6]}
16... Qa5 {[%clk 0:01:58.2]} 17. Qd2 {[%clk 0:02:12]} 17... Rb8 {[%clk
0:01:42.2]} 18. Rab1 {[%clk 0:02:04.5]} 18... Rxb1 {[%clk 0:01:36.7]} 19. Rxb1
{[%clk 0:02:05.4]} 19... Qa6 {[%clk 0:01:19.4]} 20. h3 {[%clk 0:01:55.4]} 20...
Ne4 {[%clk 0:01:14.5]} 21. Nxe4 {[%clk 0:01:39.1]} 21... Bxh4 {[%clk 0:01:14.6]}
22. Nd6 {[%clk 0:01:12]} 22... Be7 {[%clk 0:01:12.3]} 23. Nb7 {[%clk 0:00:54.6]}
23... Bb5 {[%clk 0:01:02.7]} 24. Qa5 {[%clk 0:00:45.9]} 24... Qxa5 {[%clk
0:00:59.5]} 25. Nxa5 {[%clk 0:00:45.3]} 25... a6 {[%clk 0:01:00.4]} 26. f3
{[%clk 0:00:15.4]} 26... Bg5 {[%clk 0:00:59.9]} 27. Kf2 {[%clk 0:00:14.4]} 27...
Bd2 {[%clk 0:00:58.7]} 28. Nb3 {[%clk 0:00:14.4]} 28... Bc3 {[%clk 0:00:53.7]}
29. Rc1 {[%clk 0:00:14.5]} 29... Bb2 {[%clk 0:00:47.5]} 30. Rc2 {[%clk
0:00:13.4]} 30... Ba3 {[%clk 0:00:47.9]} 31. c6 {[%clk 0:00:10.8]} 31... Bd6
{[%clk 0:00:44.3]} 32. Nd7 {[%clk 0:00:08.3]} 32... Rc8 {[%clk 0:00:42]} 33. Na5
{[%clk 0:00:08.1]} 33... Bb4 {[%clk 0:00:39]} 34. Nb6 {[%clk 0:00:01.5]} 34...
Rc7 {[%clk 0:00:34.4]} 35. Na8 {[%clk 0:00:01.9]} 35... Bxa5 {[%clk 0:00:29]}
36. Nxc7 {[%clk 0:00:02.3]} 36... Bxc7 {[%clk 0:00:29.9]} 37. Ke3 {[%clk
0:00:01.1]} 37... Kf8 {[%clk 0:00:30.1]} 0-1

[Event "Late-Titled-Tuesday-Blitz-February-13-2024"]
[Site "Chess.com"]
[Date "2024.02.13"]
[Round "2"]
[White "pooh2012"]
[Black "KNVB"]
[Result "0-1"]
[WhiteElo "2560"]
[BlackElo "2861"]
[TimeControl "180+1"]
[EndTime "14:17:20 PST"]
[Termination "KNVB won on time"]

1. Nf3 {[%clk 0:03:00.9]} 1... Nf6 {[%clk 0:02:57.5]} 2. g3 {[%clk 0:03:00.6]}
2... b6 {[%clk 0:02:57.2]} 3. Bg2 {[%clk 0:02:59.6]} 3... Bb7 {[%clk 0:02:58.1]}
4. d3 {[%clk 0:02:58.9]} 4... c5 {[%clk 0:02:52.4]} 5. O-O {[%clk 0:02:45.8]}
5... e6 {[%clk 0:02:52.4]} 6. e4 {[%clk 0:02:44.9]} 6... d6 {[%clk 0:02:51.7]}
7. a4 {[%clk 0:02:42.8]} 7... Nc6 {[%clk 0:02:50.2]} 8. Nbd2 {[%clk 0:02:39.2]}
8... Be7 {[%clk 0:02:50.2]} 9. Nh4 {[%clk 0:02:30.2]} 9... Nd7 {[%clk
0:02:36.8]} 10. Nhf3 {[%clk 0:02:28.9]} 10... a6 {[%clk 0:02:30]} 11. c3 {[%clk
0:02:18.2]} 11... Rc8 {[%clk 0:02:02.7]} 12. Nc4 {[%clk 0:01:46.8]} 12... O-O
{[%clk 0:01:39.9]} 13. Bf4 {[%clk 0:01:26.7]} 13... Qc7 {[%clk 0:01:27]} 14. h4
{[%clk 0:01:14.7]} 14... Nde5 {[%clk 0:00:53.1]} 15. Qe2 {[%clk 0:00:59.1]}
15... b5 {[%clk 0:00:45.5]} 16. axb5 {[%clk 0:00:54.2]} 16... axb5 {[%clk
0:00:46.4]} 17. Ncxe5 {[%clk 0:00:48.9]} 17... dxe5 {[%clk 0:00:41.9]} 18. Be3
{[%clk 0:00:49.1]} 18... Ra8 {[%clk 0:00:32.4]} 19. d4 {[%clk 0:00:41.5]} 19...
exd4 {[%clk 0:00:27.8]} 20. cxd4 {[%clk 0:00:41.1]} 20... c4 {[%clk 0:00:21]}
21. Rad1 {[%clk 0:00:16.3]} 21... Nb4 {[%clk 0:00:20.3]} 22. Bf4 {[%clk
0:00:13.8]} 22... Bd6 {[%clk 0:00:17.3]} 23. Bxd6 {[%clk 0:00:12.4]} 23... Qxd6
{[%clk 0:00:18.2]} 24. e5 {[%clk 0:00:10.7]} 24... Qe7 {[%clk 0:00:12]} 25. Qd2
{[%clk 0:00:10.5]} 25... h6 {[%clk 0:00:07.7]} 26. Qc3 {[%clk 0:00:07.7]} 26...
Rfd8 {[%clk 0:00:05.3]} 27. b3 {[%clk 0:00:07.1]} 27... Ra3 {[%clk 0:00:03.2]}
28. Rb1 {[%clk 0:00:06.1]} 28... Be4 {[%clk 0:00:02.5]} 29. Rb2 {[%clk
0:00:04.7]} 29... Nd5 {[%clk 0:00:03]} 30. Qe1 {[%clk 0:00:04.6]} 30... c3
{[%clk 0:00:02.4]} 31. Re2 {[%clk 0:00:01.9]} 31... Bd3 {[%clk 0:00:03.1]} 32.
Re3 {[%clk 0:00:01.5]} 32... Bxf1 {[%clk 0:00:03.4]} 0-1

[Event "Late-Titled-Tuesday-Blitz-February-13-2024"]
[Site "Chess.com"]
[Date "2024.02.13"]
[Round "2"]
[White "CarlosjPineror"]
[Black "hmatyi07"]
[Result "1-0"]
[WhiteElo "2701"]
[BlackElo "2252"]
[TimeControl "180+1"]
[EndTime "14:17:22 PST"]
[Termination "CarlosjPineror won on time"]

1. e4 {[%clk 0:03:00.9]} 1... c6 {[%clk 0:02:56.3]} 2. d4 {[%clk 0:02:55.4]}
2... d5 {[%clk 0:02:54.5]} 3. e5 {[%clk 0:02:55.5]} 3... c5 {[%clk 0:02:53.6]}
4. c3 {[%clk 0:02:55.5]} 4... Nc6 {[%clk 0:02:50.8]} 5. Nf3 {[%clk 0:02:55.3]}
5... cxd4 {[%clk 0:02:50.1]} 6. cxd4 {[%clk 0:02:55.2]} 6... Bg4 {[%clk
0:02:49.9]} 7. Be3 {[%clk 0:02:50.1]} 7... e6 {[%clk 0:02:48.2]} 8. a3 {[%clk
0:02:46.7]} 8... Nge7 {[%clk 0:02:47.7]} 9. Bd3 {[%clk 0:02:44.9]} 9... Nf5
{[%clk 0:02:44.9]} 10. Qa4 {[%clk 0:02:28.8]} 10... Bxf3 {[%clk 0:02:31.7]} 11.
gxf3 {[%clk 0:02:28.1]} 11... Nh4 {[%clk 0:02:24.9]} 12. Nd2 {[%clk 0:02:24.1]}
12... Be7 {[%clk 0:02:23.5]} 13. Bb5 {[%clk 0:02:18.7]} 13... O-O {[%clk
0:02:16]} 14. Ke2 {[%clk 0:02:09.4]} 14... Nf5 {[%clk 0:02:06]} 15. Bxc6 {[%clk
0:02:07.2]} 15... bxc6 {[%clk 0:02:05.7]} 16. Rac1 {[%clk 0:02:07.6]} 16... c5
{[%clk 0:01:10.8]} 17. dxc5 {[%clk 0:02:04.3]} 17... d4 {[%clk 0:01:09.8]} 18.
Bf4 {[%clk 0:02:04.8]} 18... d3+ {[%clk 0:00:48.8]} 19. Kd1 {[%clk 0:02:04]}
19... Nd4 {[%clk 0:00:43.8]} 20. Qc4 {[%clk 0:01:52.3]} 20... Ne2 {[%clk
0:00:33.9]} 21. Be3 {[%clk 0:01:22.4]} 21... Nxc1 {[%clk 0:00:30]} 22. Kxc1
{[%clk 0:01:22.6]} 22... a5 {[%clk 0:00:29.3]} 23. Ne4 {[%clk 0:01:21.6]} 23...
Qd5 {[%clk 0:00:22.2]} 24. Qxd5 {[%clk 0:01:15.9]} 24... exd5 {[%clk 0:00:22.2]}
25. Nd6 {[%clk 0:01:16.6]} 25... f6 {[%clk 0:00:13]} 26. f4 {[%clk 0:01:10.5]}
26... fxe5 {[%clk 0:00:12.9]} 27. fxe5 {[%clk 0:01:11.4]} 27... Rab8 {[%clk
0:00:05]} 28. Rd1 {[%clk 0:01:09.8]} 28... a4 {[%clk 0:00:03.1]} 29. Rxd3 {[%clk
0:01:09.4]} 29... Bh4 {[%clk 0:00:03.1]} 30. f4 {[%clk 0:01:06.8]} 30... g5
{[%clk 0:00:02]} 31. f5 {[%clk 0:01:04.1]} 31... g4 {[%clk 0:00:01.5]} 32. f6
{[%clk 0:00:51.6]} 32... Rb3 {[%clk 0:00:02]} 33. Rxb3 {[%clk 0:00:51]} 33...
axb3 {[%clk 0:00:02.9]} 34. c6 {[%clk 0:00:50.7]} 34... g3 {[%clk 0:00:02.7]}
35. hxg3 {[%clk 0:00:48.9]} 35... Bxg3 {[%clk 0:00:03.6]} 36. Bd4 {[%clk
0:00:48.4]} 36... h5 {[%clk 0:00:03.9]} 37. c7 {[%clk 0:00:36.1]} 37... h4
{[%clk 0:00:04.1]} 38. Nf5 {[%clk 0:00:36.7]} 38... Bf4+ {[%clk 0:00:02.4]} 39.
Kd1 {[%clk 0:00:36.5]} 39... Kf7 {[%clk 0:00:01.4]} 40. Nxh4 {[%clk 0:00:33.9]}
40... Ke6 {[%clk 0:00:01.5]} 41. Ng6 {[%clk 0:00:34]} 41... Bxe5 {[%clk
0:00:01.1]} 42. Nxf8+ {[%clk 0:00:33.4]} 42... Kd6 {[%clk 0:00:01.1]} 43. Bxe5+
{[%clk 0:00:33.9]} 1-0

[Event "Late-Titled-Tuesday-Blitz-February-13-2024"]
[Site "Chess.com"]
[Date "2024.02.13"]
[Round "2"]
[White "biostatistician"]
[Black "BilodeauA"]
[Result "0-1"]
[WhiteElo "2596"]
[BlackElo "2947"]
[TimeControl "180+1"]
[EndTime "14:17:23 PST"]
[Termination "BilodeauA won by checkmate"]

1. d4 {[%clk 0:02:59.2]} 1... d5 {[%clk 0:02:35.9]} 2. Nf3 {[%clk 0:02:58.1]}
2... Nf6 {[%clk 0:02:35.3]} 3. c4 {[%clk 0:02:57.7]} 3... dxc4 {[%clk
0:02:36.2]} 4. e3 {[%clk 0:02:57.3]} 4... Bg4 {[%clk 0:02:36.7]} 5. Bxc4 {[%clk
0:02:57.1]} 5... e6 {[%clk 0:02:37.2]} 6. Qa4+ {[%clk 0:02:40.6]} 6... c6 {[%clk
0:02:33.6]} 7. Bd3 {[%clk 0:02:38.8]} 7... Bxf3 {[%clk 0:02:29.9]} 8. gxf3
{[%clk 0:02:39.7]} 8... Nbd7 {[%clk 0:02:30.4]} 9. f4 {[%clk 0:02:39.7]} 9...
Nb6 {[%clk 0:02:26.3]} 10. Qc2 {[%clk 0:02:38.1]} 10... Qd5 {[%clk 0:02:22.6]}
11. Rg1 {[%clk 0:02:33.9]} 11... Qh5 {[%clk 0:02:18.4]} 12. Rg2 {[%clk
0:02:19.2]} 12... Nfd5 {[%clk 0:01:59.9]} 13. a3 {[%clk 0:02:15.5]} 13... f5
{[%clk 0:01:58]} 14. Nd2 {[%clk 0:01:57.5]} 14... g6 {[%clk 0:01:51.4]} 15. Be2
{[%clk 0:01:56.3]} 15... Qh3 {[%clk 0:01:50.6]} 16. Bf1 {[%clk 0:01:56.1]} 16...
Qh6 {[%clk 0:01:50.6]} 17. Nf3 {[%clk 0:01:55.7]} 17... Bd6 {[%clk 0:01:49.4]}
18. Bd2 {[%clk 0:01:55.1]} 18... O-O-O {[%clk 0:01:45]} 19. Ng5 {[%clk
0:01:54.1]} 19... Rd7 {[%clk 0:01:27.4]} 20. Nxe6 {[%clk 0:01:52.4]} 20... Re8
{[%clk 0:01:26.5]} 21. Nc5 {[%clk 0:01:44.5]} 21... Bxc5 {[%clk 0:00:55.6]} 22.
dxc5 {[%clk 0:01:45.4]} 22... Na8 {[%clk 0:00:49.5]} 23. O-O-O {[%clk
0:01:45.2]} 23... Nac7 {[%clk 0:00:49.3]} 24. Bc4 {[%clk 0:01:28.7]} 24... Red8
{[%clk 0:00:42.3]} 25. Be2 {[%clk 0:01:13.7]} 25... Nf6 {[%clk 0:00:35.7]} 26.
Bc3 {[%clk 0:01:01]} 26... Rxd1+ {[%clk 0:00:34.5]} 27. Bxd1 {[%clk 0:01:01.9]}
27... Ne4 {[%clk 0:00:35.2]} 28. Bf3 {[%clk 0:00:48]} 28... Nxc3 {[%clk
0:00:35.6]} 29. Qxc3 {[%clk 0:00:48.5]} 29... Qh3 {[%clk 0:00:36.3]} 30. Rg3
{[%clk 0:00:42.2]} 30... Qf1+ {[%clk 0:00:36.5]} 31. Kc2 {[%clk 0:00:38.5]}
31... Qxf2+ {[%clk 0:00:35]} 32. Kb3 {[%clk 0:00:38.8]} 32... Nb5 {[%clk
0:00:29.5]} 33. Qe5 {[%clk 0:00:20]} 33... Rd3+ {[%clk 0:00:27.8]} 34. Ka4
{[%clk 0:00:13.8]} 34... Qc2+ {[%clk 0:00:26.8]} 35. Ka5 {[%clk 0:00:13.9]}
35... Qd2+ {[%clk 0:00:23.3]} 36. Ka4 {[%clk 0:00:14]} 36... Rxe3 {[%clk
0:00:16.6]} 37. Qh8+ {[%clk 0:00:14]} 37... Qd8 {[%clk 0:00:16.6]} 38. Qxh7
{[%clk 0:00:10.9]} 38... Qd4+ {[%clk 0:00:15.2]} 39. Ka5 {[%clk 0:00:10.9]}
39... Rxa3+ {[%clk 0:00:15.6]} 40. bxa3 {[%clk 0:00:10.5]} 40... Qc3+ {[%clk
0:00:16]} 41. Ka4 {[%clk 0:00:09.9]} 41... Qxa3# {[%clk 0:00:15.2]} 0-1

[Event "Late-Titled-Tuesday-Blitz-February-13-2024"]
[Site "Chess.com"]
[Date "2024.02.13"]
[Round "2"]
[White "Yurovskykh_Oleksandr"]
[Black "Felix-Rose"]
[Result "1-0"]
[WhiteElo "2693"]
[BlackElo "2242"]
[TimeControl "180+1"]
[EndTime "14:17:24 PST"]
[Termination "Yurovskykh_Oleksandr won by checkmate"]

1. d4 {[%clk 0:03:00.9]} 1... d5 {[%clk 0:02:59.4]} 2. Bf4 {[%clk 0:03:00.8]}
2... Nf6 {[%clk 0:02:58.9]} 3. e3 {[%clk 0:03:01.1]} 3... e6 {[%clk 0:02:59.3]}
4. Nd2 {[%clk 0:03:00.9]} 4... Bd6 {[%clk 0:02:59.4]} 5. Bg3 {[%clk 0:03:00.8]}
5... O-O {[%clk 0:02:59.5]} 6. Bd3 {[%clk 0:02:59.7]} 6... c5 {[%clk 0:02:59.8]}
7. c3 {[%clk 0:02:59.6]} 7... b6 {[%clk 0:03:00.2]} 8. e4 {[%clk 0:02:59.8]}
8... Be7 {[%clk 0:02:53.7]} 9. e5 {[%clk 0:02:53]} 9... Nfd7 {[%clk 0:02:53.4]}
10. f4 {[%clk 0:02:51.5]} 10... Ba6 {[%clk 0:02:51.4]} 11. Bxa6 {[%clk
0:02:43.3]} 11... Nxa6 {[%clk 0:02:52.3]} 12. a3 {[%clk 0:02:44]} 12... f5
{[%clk 0:02:47.8]} 13. Ngf3 {[%clk 0:02:35]} 13... cxd4 {[%clk 0:02:43.8]} 14.
cxd4 {[%clk 0:02:32.4]} 14... b5 {[%clk 0:02:38.9]} 15. O-O {[%clk 0:02:28.3]}
15... Qb6 {[%clk 0:02:30.8]} 16. b4 {[%clk 0:02:07.4]} 16... Rac8 {[%clk
0:02:24.2]} 17. Nb3 {[%clk 0:02:05.4]} 17... h6 {[%clk 0:02:20.2]} 18. Nc5
{[%clk 0:02:04]} 18... Naxc5 {[%clk 0:02:17.7]} 19. dxc5 {[%clk 0:02:03.8]}
19... Qc7 {[%clk 0:02:13.2]} 20. Nd4 {[%clk 0:02:03.9]} 20... Bxc5 {[%clk
0:01:52]} 21. bxc5 {[%clk 0:01:57.9]} 21... Nxc5 {[%clk 0:01:33.7]} 22. Nxb5
{[%clk 0:01:44.8]} 22... Qb6 {[%clk 0:01:32.8]} 23. Nd6 {[%clk 0:01:41.6]} 23...
Ne4+ {[%clk 0:01:23.1]} 24. Bf2 {[%clk 0:01:41.8]} 24... Nxf2 {[%clk 0:01:17.1]}
25. Rxf2 {[%clk 0:01:42.7]} 25... Rc3 {[%clk 0:01:08.6]} 26. Qd2 {[%clk
0:01:33.3]} 26... Rb3 {[%clk 0:01:03.1]} 27. h3 {[%clk 0:01:31]} 27... Rb8
{[%clk 0:00:52.3]} 28. Kh2 {[%clk 0:01:29.7]} 28... Kh7 {[%clk 0:00:49.7]} 29.
Rc1 {[%clk 0:01:27.7]} 29... Rxa3 {[%clk 0:00:47.6]} 30. Qc2 {[%clk 0:01:17.3]}
30... d4 {[%clk 0:00:36.1]} 31. Rd2 {[%clk 0:01:15.1]} 31... Rc3 {[%clk
0:00:30.9]} 32. Qd1 {[%clk 0:01:11]} 32... Qc5 {[%clk 0:00:28.2]} 33. Ra1 {[%clk
0:00:56.7]} 33... Rb4 {[%clk 0:00:19.9]} 34. Rda2 {[%clk 0:00:55.2]} 34... d3
{[%clk 0:00:15.8]} 35. Rxa7 {[%clk 0:00:49.6]} 35... Rxf4 {[%clk 0:00:15.1]} 36.
Rxg7+ {[%clk 0:00:46.2]} 36... Kxg7 {[%clk 0:00:14.1]} 37. Qh5 {[%clk
0:00:40.3]} 37... Qc7 {[%clk 0:00:09.4]} 38. Ne8+ {[%clk 0:00:36]} 38... Kh7
{[%clk 0:00:09.3]} 39. Nxc7 {[%clk 0:00:31.2]} 39... Rxc7 {[%clk 0:00:10.2]} 40.
Ra8 {[%clk 0:00:28]} 40... Rd7 {[%clk 0:00:08.4]} 41. Qe8 {[%clk 0:00:28]} 41...
Rfd4 {[%clk 0:00:08.4]} 42. Qg8# {[%clk 0:00:28.1]} 1-0

[Event "Late-Titled-Tuesday-Blitz-February-13-2024"]
[Site "Chess.com"]
[Date "2024.02.13"]
[Round "2"]
[White "LastHeroJr"]
[Black "miraitrunks"]
[Result "1-0"]
[WhiteElo "2478"]
[BlackElo "2195"]
[TimeControl "180+1"]
[EndTime "14:17:24 PST"]
[Termination "LastHeroJr won on time"]

1. e4 {[%clk 0:03:00.9]} 1... c5 {[%clk 0:02:56.6]} 2. Nc3 {[%clk 0:02:59.9]}
2... e6 {[%clk 0:02:56.6]} 3. g3 {[%clk 0:02:59.6]} 3... d5 {[%clk 0:02:56.9]}
4. e5 {[%clk 0:02:58.6]} 4... Nc6 {[%clk 0:02:55.3]} 5. f4 {[%clk 0:02:58]} 5...
g5 {[%clk 0:02:53.2]} 6. d3 {[%clk 0:02:57.4]} 6... gxf4 {[%clk 0:02:53.2]} 7.
Bxf4 {[%clk 0:02:57.2]} 7... Bh6 {[%clk 0:02:53.3]} 8. Bxh6 {[%clk 0:02:52.6]}
8... Nxh6 {[%clk 0:02:54.2]} 9. Qh5 {[%clk 0:02:50.9]} 9... Nf5 {[%clk
0:02:49.9]} 10. Nf3 {[%clk 0:02:49.2]} 10... Ncd4 {[%clk 0:02:43.6]} 11. Nxd4
{[%clk 0:02:45.2]} 11... cxd4 {[%clk 0:02:44.5]} 12. Ne2 {[%clk 0:02:43.7]}
12... Qa5+ {[%clk 0:02:39.4]} 13. c3 {[%clk 0:02:42.9]} 13... Ne3 {[%clk
0:02:38.4]} 14. Kf2 {[%clk 0:02:39]} 14... dxc3 {[%clk 0:02:26.8]} 15. Kxe3
{[%clk 0:02:28.4]} 15... cxb2 {[%clk 0:02:26.2]} 16. Rb1 {[%clk 0:02:27.6]}
16... Qxa2 {[%clk 0:02:19.1]} 17. Bh3 {[%clk 0:02:27.5]} 17... d4+ {[%clk
0:02:13.8]} 18. Nxd4 {[%clk 0:02:26.8]} 18... Bd7 {[%clk 0:02:12.6]} 19. Qe2
{[%clk 0:02:22.6]} 19... Qd5 {[%clk 0:02:10]} 20. Qxb2 {[%clk 0:02:18.4]} 20...
Qxe5+ {[%clk 0:02:09.6]} 21. Kd2 {[%clk 0:02:18.6]} 21... Qg5+ {[%clk
0:01:56.8]} 22. Ke1 {[%clk 0:02:17.8]} 22... O-O {[%clk 0:01:55.4]} 23. Bg2
{[%clk 0:02:12.9]} 23... Qe3+ {[%clk 0:01:52.1]} 24. Ne2 {[%clk 0:02:11.4]}
24... Qxd3 {[%clk 0:01:45.5]} 25. Rd1 {[%clk 0:02:10.9]} 25... Qb5 {[%clk
0:01:36.7]} 26. Qxb5 {[%clk 0:02:10.3]} 26... Bxb5 {[%clk 0:01:37.6]} 27. Bxb7
{[%clk 0:02:10.1]} 27... Rab8 {[%clk 0:01:37.3]} 28. Bf3 {[%clk 0:02:09.8]}
28... Rfc8 {[%clk 0:01:35.5]} 29. Kf2 {[%clk 0:02:07.8]} 29... Rc2 {[%clk
0:01:34.9]} 30. Rc1 {[%clk 0:02:07.9]} 30... Rb2 {[%clk 0:01:32.1]} 31. Rb1
{[%clk 0:02:04.4]} 31... Bxe2 {[%clk 0:00:32.1]} 32. Rxb2 {[%clk 0:01:57.2]}
32... Rxb2 {[%clk 0:00:33]} 33. Bxe2 {[%clk 0:01:56.5]} 33... a5 {[%clk
0:00:32.3]} 34. Ra1 {[%clk 0:01:54.2]} 34... Kg7 {[%clk 0:00:29.4]} 35. Rxa5
{[%clk 0:01:49.1]} 35... Rd2 {[%clk 0:00:29.1]} 36. h4 {[%clk 0:01:46.1]} 36...
h6 {[%clk 0:00:27.9]} 37. Ke3 {[%clk 0:01:44.1]} 37... Rd7 {[%clk 0:00:22.9]}
38. Bf3 {[%clk 0:01:42.4]} 38... f5 {[%clk 0:00:18.9]} 39. Rb5 {[%clk
0:01:41.9]} 39... Kf6 {[%clk 0:00:18]} 40. Rb7 {[%clk 0:01:41.3]} 40... Rxb7
{[%clk 0:00:13.4]} 41. Bxb7 {[%clk 0:01:40.6]} 41... e5 {[%clk 0:00:13.9]} 42.
Kf3 {[%clk 0:01:37.8]} 42... Ke6 {[%clk 0:00:13.1]} 43. Bc8+ {[%clk 0:01:37.5]}
43... Kf6 {[%clk 0:00:13.2]} 44. Bd7 {[%clk 0:01:36.8]} 44... Kg6 {[%clk
0:00:11.4]} 45. Be8+ {[%clk 0:01:32.9]} 45... Kf6 {[%clk 0:00:10.8]} 46. Ba4
{[%clk 0:01:31.8]} 46... Kg6 {[%clk 0:00:10.8]} 47. Bc2 {[%clk 0:01:31.5]} 47...
Kf6 {[%clk 0:00:11]} 48. Bb1 {[%clk 0:01:31.1]} 48... Ke6 {[%clk 0:00:11.1]} 49.
Kg2 {[%clk 0:01:26.1]} 49... Kf6 {[%clk 0:00:11.2]} 50. Kh3 {[%clk 0:01:26.4]}
50... Ke6 {[%clk 0:00:11.5]} 51. h5 {[%clk 0:01:21.5]} 51... Kf6 {[%clk
0:00:11]} 52. Kh4 {[%clk 0:01:22]} 52... e4 {[%clk 0:00:09.8]} 53. Kh3 {[%clk
0:01:20.7]} 53... Ke5 {[%clk 0:00:09.8]} 54. Kg2 {[%clk 0:01:20.6]} 54... Kd4
{[%clk 0:00:09.8]} 55. Kf2 {[%clk 0:01:20]} 1-0

[Event "Late-Titled-Tuesday-Blitz-February-13-2024"]
[Site "Chess.com"]
[Date "2024.02.13"]
[Round "2"]
[White "Korchmar_Vasiliy"]
[Black "AsaHoffmann"]
[Result "1-0"]
[WhiteElo "2738"]
[BlackElo "2430"]
[TimeControl "180+1"]
[EndTime "14:17:25 PST"]
[Termination "Korchmar_Vasiliy won by resignation"]

1. e4 {[%clk 0:03:00.9]} 1... d6 {[%clk 0:02:58.3]} 2. d4 {[%clk 0:03:00.7]}
2... c6 {[%clk 0:02:56.8]} 3. Nc3 {[%clk 0:03:00.1]} 3... a6 {[%clk 0:02:56.7]}
4. Bd3 {[%clk 0:02:59]} 4... g6 {[%clk 0:02:54.8]} 5. Nf3 {[%clk 0:02:58.7]}
5... Bg4 {[%clk 0:02:53.4]} 6. h3 {[%clk 0:02:57.9]} 6... Bxf3 {[%clk
0:02:53.2]} 7. Qxf3 {[%clk 0:02:58.8]} 7... Bg7 {[%clk 0:02:53.2]} 8. Be3 {[%clk
0:02:56.9]} 8... Qb6 {[%clk 0:02:46.7]} 9. O-O-O {[%clk 0:02:31.4]} 9... Bxd4
{[%clk 0:02:35.6]} 10. Bxd4 {[%clk 0:02:31.7]} 10... Qxd4 {[%clk 0:02:35.3]} 11.
Nd5 {[%clk 0:02:32.4]} 11... Qa4 {[%clk 0:02:03]} 12. Nc7+ {[%clk 0:02:24.5]}
12... Kf8 {[%clk 0:01:58.6]} 13. Nxa8 {[%clk 0:02:25.4]} 13... Qxa2 {[%clk
0:01:58]} 14. e5 {[%clk 0:01:41.4]} 14... Nd7 {[%clk 0:01:46.5]} 15. exd6 {[%clk
0:01:36.9]} 15... exd6 {[%clk 0:01:42]} 16. c3 {[%clk 0:01:29.3]} 16... Ne5
{[%clk 0:01:35.2]} 17. Qe3 {[%clk 0:01:08.7]} 17... Kg7 {[%clk 0:01:30.4]} 18.
Bb1 {[%clk 0:01:06]} 18... Qa5 {[%clk 0:01:28]} 19. Rxd6 {[%clk 0:01:03.6]}
19... Nf6 {[%clk 0:01:26.7]} 20. Nb6 {[%clk 0:00:54.7]} 20... Re8 {[%clk
0:01:18.8]} 21. Qf4 {[%clk 0:00:36.4]} 21... Nh5 {[%clk 0:01:09.8]} 22. Qb4
{[%clk 0:00:35.9]} 22... Qa1 {[%clk 0:01:00.2]} 23. Qa4 {[%clk 0:00:33.6]} 23...
Qxa4 {[%clk 0:00:53.1]} 24. Nxa4 {[%clk 0:00:34.5]} 24... Nf4 {[%clk 0:00:51.1]}
25. g3 {[%clk 0:00:32.8]} 25... Ne6 {[%clk 0:00:45.3]} 26. Re1 {[%clk
0:00:30.1]} 26... Nc4 {[%clk 0:00:41.1]} 27. Rd7 {[%clk 0:00:26.4]} 27... b5
{[%clk 0:00:39.8]} 28. Nc5 {[%clk 0:00:25.2]} 28... Nxc5 {[%clk 0:00:38.5]} 29.
Rxe8 {[%clk 0:00:24.7]} 29... Nxd7 {[%clk 0:00:38.5]} 30. Ba2 {[%clk 0:00:23.5]}
30... Ndb6 {[%clk 0:00:33.2]} 31. Rb8 {[%clk 0:00:19.2]} 31... a5 {[%clk
0:00:25.1]} 32. b3 {[%clk 0:00:18.3]} 32... Nd5 {[%clk 0:00:22.1]} 33. bxc4
{[%clk 0:00:18]} 33... Nxc3 {[%clk 0:00:22]} 34. cxb5 {[%clk 0:00:13.4]} 34...
Nxa2+ {[%clk 0:00:20.9]} 35. Kb2 {[%clk 0:00:12.9]} 35... Nb4 {[%clk 0:00:20.4]}
36. b6 {[%clk 0:00:13.2]} 36... c5 {[%clk 0:00:18]} 37. b7 {[%clk 0:00:12.7]}
37... Nc6 {[%clk 0:00:16.3]} 38. Rc8 {[%clk 0:00:12]} 38... Ne5 {[%clk
0:00:14.2]} 39. b8=Q {[%clk 0:00:11.8]} 39... Nc4+ {[%clk 0:00:14.1]} 40. Kc3
{[%clk 0:00:12.2]} 1-0